[Event "Titled Tuesday Blitz July 18 Late 2023"]
[White "Tikhonov, Viacheslav"]
[Black "JERO-8914"]
[WhiteFideId "44196407"]
[WhiteElo "2535"]
[BlackElo "2489"]
[Result "0-1"]
[Round "8"]
[TimeControl "180+2"]
[Date "2023.07.18"]
[WhiteClock "0:00:02"]
[BlackClock "0:01:04"]
[Board "77"]

1. e4 {[%clk 0:03:00]}  c6 {[%clk 0:02:58]} 2. d4 {[%clk 0:03:00]}  d5 {[%clk 0:02:58]} 3. Nc3 {[%clk 0:03:01]}  dxe4 {[%clk 0:02:58]} 4. Nxe4 {[%clk 0:03:00]}  Bf5 {[%clk 0:02:59]} 5. Ng3 {[%clk 0:03:00]}  Bg6 {[%clk 0:02:59]} 6. h4 {[%clk 0:03:01]}  h6 {[%clk 0:02:59]} 7. Bc4 {[%clk 0:03:01]}  e6 {[%clk 0:02:59]} 8. N1e2 {[%clk 0:03:01]}  Bd6 {[%clk 0:02:58]} 9. Nf4 {[%clk 0:03:02]}  Bxf4 {[%clk 0:02:58]} 10. Bxf4 {[%clk 0:03:03]}  Ne7 {[%clk 0:02:57]} 11. c3 {[%clk 0:03:01]}  O-O {[%clk 0:02:57]} 12. Qd2 {[%clk 0:02:43]}  Nd5 {[%clk 0:02:54]} 13. O-O-O {[%clk 0:02:31]}  Nd7 {[%clk 0:02:47]} 14. f3 {[%clk 0:02:03]}  N7b6 {[%clk 0:02:43]} 15. Bb3 {[%clk 0:02:02]}  a5 {[%clk 0:02:43]} 16. a3 {[%clk 0:01:59]}  a4 {[%clk 0:02:42]} 17. Ba2 {[%clk 0:01:56]}  Nxf4 {[%clk 0:02:42]} 18. Qxf4 {[%clk 0:01:56]}  Nd5 {[%clk 0:02:43]} 19. Qd2 {[%clk 0:01:54]}  b5 {[%clk 0:02:39]} 20. Ne4 {[%clk 0:01:52]}  Rb8 {[%clk 0:02:32]} 21. Nc5 {[%clk 0:01:50]}  Qd6 {[%clk 0:02:22]} 22. h5 {[%clk 0:01:47]}  Bh7 {[%clk 0:02:22]} 23. g4 {[%clk 0:01:45]}  e5 {[%clk 0:02:22]} 24. Rhe1 {[%clk 0:01:20]}  Rfe8 {[%clk 0:02:15]} 25. Bb1 {[%clk 0:01:03]}  Bxb1 {[%clk 0:02:13]} 26. Kxb1 {[%clk 0:01:04]}  exd4 {[%clk 0:02:12]} 27. Qxd4 {[%clk 0:01:01]}  Qg3 {[%clk 0:02:06]} 28. Ne4 {[%clk 0:00:29]}  Qxf3 {[%clk 0:02:00]} 29. g5 {[%clk 0:00:29]}  hxg5 {[%clk 0:01:58]} 30. h6 {[%clk 0:00:29]}  gxh6 {[%clk 0:01:56]} 31. Ka1 {[%clk 0:00:29]}  Rbd8 {[%clk 0:01:41]} 32. Rd3 {[%clk 0:00:20]}  Qf4 {[%clk 0:01:38]} 33. Rdd1 {[%clk 0:00:14]}  Re6 {[%clk 0:01:31]} 34. Qd3 {[%clk 0:00:09]}  Rde8 {[%clk 0:01:29]} 35. c4 {[%clk 0:00:03]}  bxc4 {[%clk 0:01:27]} 36. Qh3 {[%clk 0:00:03]}  Rxe4 {[%clk 0:01:26]} 37. Rf1 {[%clk 0:00:04]}  Qh4 {[%clk 0:01:24]} 38. Qd7 {[%clk 0:00:04]}  Nf4 {[%clk 0:01:16]} 39. Qxc6 {[%clk 0:00:04]}  Qg4 {[%clk 0:01:10]} 40. Rh1 {[%clk 0:00:04]}  Qe6 {[%clk 0:01:10]} 41. Qxa4 {[%clk 0:00:03]}  c3 {[%clk 0:01:09]} 42. Qc2 {[%clk 0:00:01]}  cxb2+ {[%clk 0:01:10]} 43. Qxb2 {[%clk 0:00:01]}  Re2 {[%clk 0:01:10]} 44. Rd2 {[%clk 0:00:01]}  Rxd2 {[%clk 0:01:07]} 45. Qxd2 {[%clk 0:00:02]}  Qe5+ {[%clk 0:01:08]} 46. Ka2 {[%clk 0:00:03]}  Qd5+ {[%clk 0:01:07]} 47. Qxd5 {[%clk 0:00:02]}  Nxd5 {[%clk 0:01:08]} 48. Rxh6 {[%clk 0:00:03]}  g4 {[%clk 0:01:08]} 49. a4 {[%clk 0:00:02]}  g3 {[%clk 0:01:07]} 50. Rh3 {[%clk 0:00:03]}  Re3 {[%clk 0:01:06]} 51. a5 {[%clk 0:00:03]}  g2 {[%clk 0:01:05]} 52. Rh5 {[%clk 0:00:01]}  g1=Q {[%clk 0:01:03]} 53. Rxd5 {[%clk 0:00:02]}  Qf2+ {[%clk 0:01:03]} 54. Rd2 {[%clk 0:00:02]}  Qxd2+ {[%clk 0:01:03]} 55. Kb1 {[%clk 0:00:02]}  Re1# {[%clk 0:01:04]} 0-1


[Site "https://www.chess.com"]

[Event "Titled Tuesday Blitz July 18 Late 2023"]
[White "Kanyamarala, Tarun"]
[Black "Arnold, Ken"]
[WhiteFideId "45004714"]
[BlackFideId "2056836"]
[WhiteElo "2519"]
[BlackElo "2433"]
[Result "0-1"]
[Round "8"]
[TimeControl "180+2"]
[Date "2023.07.18"]
[WhiteClock "0:00:11"]
[BlackClock "0:00:37"]
[Board "79"]

1. e4 {[%clk 0:02:54]}  c6 {[%clk 0:03:00]} 2. Nf3 {[%clk 0:02:53]}  d5 {[%clk 0:03:00]} 3. Nc3 {[%clk 0:02:51]}  e6 {[%clk 0:02:56]} 4. d4 {[%clk 0:02:48]}  dxe4 {[%clk 0:02:54]} 5. Nxe4 {[%clk 0:02:47]}  Nd7 {[%clk 0:02:53]} 6. Bd3 {[%clk 0:02:46]}  Ngf6 {[%clk 0:02:53]} 7. Ng3 {[%clk 0:02:44]}  Bd6 {[%clk 0:02:52]} 8. O-O {[%clk 0:02:37]}  O-O {[%clk 0:02:51]} 9. Re1 {[%clk 0:02:36]}  Qc7 {[%clk 0:02:50]} 10. c3 {[%clk 0:02:35]}  Re8 {[%clk 0:02:49]} 11. Qc2 {[%clk 0:02:32]}  b6 {[%clk 0:02:42]} 12. Bg5 {[%clk 0:02:29]}  h6 {[%clk 0:02:41]} 13. Bd2 {[%clk 0:02:27]}  Bb7 {[%clk 0:02:40]} 14. Ne4 {[%clk 0:02:17]}  Bf4 {[%clk 0:02:35]} 15. Nxf6+ {[%clk 0:02:09]}  Nxf6 {[%clk 0:02:33]} 16. Ne5 {[%clk 0:02:10]}  Bxd2 {[%clk 0:02:31]} 17. Qxd2 {[%clk 0:02:10]}  c5 {[%clk 0:02:28]} 18. dxc5 {[%clk 0:01:58]}  Qxc5 {[%clk 0:02:27]} 19. Re3 {[%clk 0:01:56]}  Red8 {[%clk 0:02:24]} 20. Rae1 {[%clk 0:01:55]}  Rd5 {[%clk 0:02:13]} 21. Qc2 {[%clk 0:01:40]}  Rad8 {[%clk 0:02:12]} 22. h3 {[%clk 0:01:33]}  Qc7 {[%clk 0:01:45]} 23. Qe2 {[%clk 0:01:15]}  a5 {[%clk 0:01:28]} 24. a4 {[%clk 0:01:13]}  Rc5 {[%clk 0:01:03]} 25. Bc4 {[%clk 0:01:01]}  Bd5 {[%clk 0:00:59]} 26. Bb5 {[%clk 0:00:58]}  Bb3 {[%clk 0:00:55]} 27. Rg3 {[%clk 0:00:49]}  Bd1 {[%clk 0:00:49]} 28. Rxd1 {[%clk 0:00:45]}  Rxd1+ {[%clk 0:00:49]} 29. Qxd1 {[%clk 0:00:44]}  Rxe5 {[%clk 0:00:49]} 30. Qc1 {[%clk 0:00:38]}  Kf8 {[%clk 0:00:47]} 31. Rf3 {[%clk 0:00:34]}  Rd5 {[%clk 0:00:45]} 32. b4 {[%clk 0:00:25]}  axb4 {[%clk 0:00:43]} 33. c4 {[%clk 0:00:21]}  Rd4 {[%clk 0:00:38]} 34. Rb3 {[%clk 0:00:21]}  Qd6 {[%clk 0:00:37]} 35. Rb1 {[%clk 0:00:16]}  Ne4 {[%clk 0:00:36]} 36. Qe3 {[%clk 0:00:15]}  Nc3 {[%clk 0:00:36]} 37. Re1 {[%clk 0:00:14]}  Rd1 {[%clk 0:00:36]} 38. g3 {[%clk 0:00:13]}  Rxe1+ {[%clk 0:00:36]} 39. Qxe1 {[%clk 0:00:14]}  Qd1 {[%clk 0:00:36]} 40. Kf1 {[%clk 0:00:14]}  Qxe1+ {[%clk 0:00:36]} 41. Kxe1 {[%clk 0:00:15]}  Nxb5 {[%clk 0:00:35]} 42. cxb5 {[%clk 0:00:14]}  Ke7 {[%clk 0:00:35]} 43. Kd2 {[%clk 0:00:14]}  Kd6 {[%clk 0:00:35]} 44. Kc2 {[%clk 0:00:14]}  Kc5 {[%clk 0:00:36]} 45. Kb3 {[%clk 0:00:14]}  e5 {[%clk 0:00:36]} 46. f3 {[%clk 0:00:14]}  f5 {[%clk 0:00:36]} 47. Kc2 {[%clk 0:00:14]}  e4 {[%clk 0:00:35]} 48. fxe4 {[%clk 0:00:13]}  fxe4 {[%clk 0:00:36]} 49. Kd2 {[%clk 0:00:14]}  b3 {[%clk 0:00:36]} 50. Kc3 {[%clk 0:00:12]}  e3 {[%clk 0:00:36]} 51. Kxb3 {[%clk 0:00:12]}  e2 {[%clk 0:00:36]} 52. Kc2 {[%clk 0:00:12]}  e1=Q {[%clk 0:00:37]} 53. Kd3 {[%clk 0:00:11]}  Qxg3+ {[%clk 0:00:37]} 0-1


[Site "https://www.chess.com"]

[Event "Titled Tuesday Blitz July 18 Late 2023"]
[White "Rottenwohrer Suarez, Juan"]
[Black "Seyhanoglu, Deniz"]
[WhiteFideId "32068182"]
[BlackFideId "6302572"]
[WhiteElo "2517"]
[BlackElo "2426"]
[Result "1-0"]
[Round "8"]
[TimeControl "180+2"]
[Date "2023.07.18"]
[WhiteClock "0:01:04"]
[BlackClock "0:00:07"]
[Board "80"]

1. e4 {[%clk 0:03:00]}  d5 {[%clk 0:02:59]} 2. exd5 {[%clk 0:03:00]}  Qxd5 {[%clk 0:03:00]} 3. Nc3 {[%clk 0:03:01]}  Qa5 {[%clk 0:03:00]} 4. Nf3 {[%clk 0:03:01]}  Nf6 {[%clk 0:02:59]} 5. Be2 {[%clk 0:02:53]}  Bg4 {[%clk 0:02:58]} 6. O-O {[%clk 0:02:53]}  e6 {[%clk 0:02:56]} 7. d4 {[%clk 0:02:51]}  c6 {[%clk 0:02:56]} 8. Bf4 {[%clk 0:02:49]}  Qd8 {[%clk 0:02:54]} 9. h3 {[%clk 0:02:47]}  Bh5 {[%clk 0:02:53]} 10. Qd2 {[%clk 0:02:43]}  Bd6 {[%clk 0:02:53]} 11. Rad1 {[%clk 0:02:40]}  O-O {[%clk 0:02:52]} 12. Rfe1 {[%clk 0:02:38]}  Qc7 {[%clk 0:02:52]} 13. Bg5 {[%clk 0:02:33]}  Nbd7 {[%clk 0:02:51]} 14. Ne5 {[%clk 0:02:24]}  Bxe2 {[%clk 0:02:11]} 15. Qxe2 {[%clk 0:02:25]}  Rfe8 {[%clk 0:01:53]} 16. Rd3 {[%clk 0:02:23]}  Nd5 {[%clk 0:01:45]} 17. Rg3 {[%clk 0:02:19]}  Nxc3 {[%clk 0:01:36]} 18. bxc3 {[%clk 0:02:18]}  Nxe5 {[%clk 0:01:34]} 19. dxe5 {[%clk 0:02:17]}  Bf8 {[%clk 0:01:34]} 20. Bf6 {[%clk 0:02:13]}  g6 {[%clk 0:01:33]} 21. Qd2 {[%clk 0:02:12]}  a5 {[%clk 0:01:25]} 22. Re4 {[%clk 0:02:12]}  a4 {[%clk 0:01:20]} 23. Rh4 {[%clk 0:02:08]}  Ra5 {[%clk 0:01:19]} 24. Qg5 {[%clk 0:01:56]}  Qb6 {[%clk 0:00:56]} 25. Rh6 {[%clk 0:01:48]}  Qc5 {[%clk 0:00:43]} 26. h4 {[%clk 0:01:41]}  Rb5 {[%clk 0:00:32]} 27. h5 {[%clk 0:01:34]}  Rb1+ {[%clk 0:00:32]} 28. Kh2 {[%clk 0:01:34]}  Qxf2 {[%clk 0:00:32]} 29. Rf3 {[%clk 0:01:30]}  Qg1+ {[%clk 0:00:26]} 30. Kg3 {[%clk 0:01:30]}  Qe1+ {[%clk 0:00:22]} 31. Kh3 {[%clk 0:01:21]}  Qh1+ {[%clk 0:00:20]} 32. Kg3 {[%clk 0:01:17]}  Rg1 {[%clk 0:00:21]} 33. Rf2 {[%clk 0:01:13]}  Bc5 {[%clk 0:00:17]} 34. hxg6 {[%clk 0:01:11]}  Bxf2+ {[%clk 0:00:16]} 35. Kf3 {[%clk 0:01:09]}  Qxg2+ {[%clk 0:00:11]} 36. Qxg2 {[%clk 0:01:08]}  Rxg2 {[%clk 0:00:07]} 37. gxh7+ {[%clk 0:01:04]} 1-0


[Site "https://www.chess.com"]

[Event "Titled Tuesday Blitz July 18 Late 2023"]
[White "Balague Camps, Marc"]
[Black "Cardenas Carbajal, Nilson"]
[WhiteFideId "2297914"]
[BlackFideId "8401128"]
[WhiteElo "2514"]
[BlackElo "2206"]
[Result "1-0"]
[Round "8"]
[TimeControl "180+2"]
[Date "2023.07.18"]
[WhiteClock "0:01:55"]
[BlackClock "0:00:00"]
[Board "82"]

1. d4 {[%clk 0:03:00]}  d5 {[%clk 0:02:54]} 2. c4 {[%clk 0:03:01]}  e6 {[%clk 0:02:54]} 3. Nf3 {[%clk 0:02:58]}  Nf6 {[%clk 0:02:54]} 4. cxd5 {[%clk 0:02:58]}  exd5 {[%clk 0:02:53]} 5. Bf4 {[%clk 0:02:58]}  Bd6 {[%clk 0:02:51]} 6. Bg3 {[%clk 0:02:58]}  O-O {[%clk 0:02:39]} 7. Nc3 {[%clk 0:02:58]}  c6 {[%clk 0:02:39]} 8. e3 {[%clk 0:02:58]}  Bg4 {[%clk 0:02:39]} 9. Bd3 {[%clk 0:02:58]}  Re8 {[%clk 0:02:34]} 10. Qc2 {[%clk 0:02:57]}  Na6 {[%clk 0:02:30]} 11. a3 {[%clk 0:02:57]}  Nc7 {[%clk 0:02:21]} 12. O-O {[%clk 0:02:55]}  Bxg3 {[%clk 0:02:14]} 13. hxg3 {[%clk 0:02:55]}  Bxf3 {[%clk 0:01:46]} 14. gxf3 {[%clk 0:02:56]}  h5 {[%clk 0:01:47]} 15. Kg2 {[%clk 0:02:56]}  Ne6 {[%clk 0:01:35]} 16. b4 {[%clk 0:02:53]}  a5 {[%clk 0:01:30]} 17. Rh1 {[%clk 0:02:51]}  axb4 {[%clk 0:01:29]} 18. axb4 {[%clk 0:02:52]}  Rxa1 {[%clk 0:01:28]} 19. Rxa1 {[%clk 0:02:52]}  Qd6 {[%clk 0:01:28]} 20. Qb1 {[%clk 0:02:44]}  h4 {[%clk 0:01:19]} 21. gxh4 {[%clk 0:02:42]}  Nh5 {[%clk 0:01:18]} 22. Bh7+ {[%clk 0:02:37]}  Kh8 {[%clk 0:01:15]} 23. Bf5 {[%clk 0:02:37]}  g6 {[%clk 0:01:01]} 24. Bxe6 {[%clk 0:02:35]}  Qxe6 {[%clk 0:01:01]} 25. Ra7 {[%clk 0:02:32]}  Qf6 {[%clk 0:00:48]} 26. Qh1 {[%clk 0:02:31]}  Re7 {[%clk 0:00:45]} 27. Qh3 {[%clk 0:02:29]}  Ng7 {[%clk 0:00:44]} 28. Qc8+ {[%clk 0:02:25]}  Kh7 {[%clk 0:00:40]} 29. Rxb7 {[%clk 0:02:26]}  Qxh4 {[%clk 0:00:27]} 30. Rxe7 {[%clk 0:02:24]}  Qxe7 {[%clk 0:00:25]} 31. Qxc6 {[%clk 0:02:23]}  Nf5 {[%clk 0:00:21]} 32. Nxd5 {[%clk 0:02:19]}  Qg5+ {[%clk 0:00:20]} 33. Kf1 {[%clk 0:02:19]}  Qh4 {[%clk 0:00:18]} 34. Ke2 {[%clk 0:02:12]}  Qh3 {[%clk 0:00:08]} 35. Nf6+ {[%clk 0:02:06]}  Kg7 {[%clk 0:00:07]} 36. Ne8+ {[%clk 0:02:05]}  Kh7 {[%clk 0:00:06]} 37. Nf6+ {[%clk 0:02:03]}  Kg7 {[%clk 0:00:06]} 38. Ne4 {[%clk 0:02:03]}  Qh4 {[%clk 0:00:04]} 39. b5 {[%clk 0:02:03]}  Ne7 {[%clk 0:00:03]} 40. Qc7 {[%clk 0:01:59]}  Nf5 {[%clk 0:00:01]} 41. b6 {[%clk 0:01:57]}  Qh1 {[%clk 0:00:01]} 42. b7 {[%clk 0:01:56]}  Qc1 {[%clk 0:00:00]} 43. Qxc1 {[%clk 0:01:55]} 1-0


[Site "https://www.chess.com"]

[Event "Titled Tuesday Blitz July 18 Late 2023"]
[White "Troff, Kayden"]
[Black "KorolDimitriy75"]
[WhiteFideId "2047896"]
[WhiteElo "2768"]
[BlackElo "2417"]
[Result "1-0"]
[Round "8"]
[TimeControl "180+2"]
[Date "2023.07.18"]
[WhiteClock "0:01:24"]
[BlackClock "0:00:00"]
[Board "83"]

1. e4 {[%clk 0:03:00]}  c5 {[%clk 0:03:00]} 2. Nc3 {[%clk 0:02:59]}  g6 {[%clk 0:02:59]} 3. d4 {[%clk 0:02:58]}  cxd4 {[%clk 0:02:59]} 4. Qxd4 {[%clk 0:02:59]}  Nf6 {[%clk 0:02:58]} 5. Nf3 {[%clk 0:02:58]}  Nc6 {[%clk 0:02:58]} 6. Qa4 {[%clk 0:02:59]}  d6 {[%clk 0:02:58]} 7. e5 {[%clk 0:02:59]}  dxe5 {[%clk 0:02:58]} 8. Nxe5 {[%clk 0:03:00]}  Bd7 {[%clk 0:02:58]} 9. Nxd7 {[%clk 0:03:00]}  Qxd7 {[%clk 0:02:59]} 10. Be3 {[%clk 0:02:47]}  Bg7 {[%clk 0:02:57]} 11. Rd1 {[%clk 0:02:47]}  Qc8 {[%clk 0:02:54]} 12. Be2 {[%clk 0:02:39]}  O-O {[%clk 0:02:52]} 13. O-O {[%clk 0:02:39]}  a6 {[%clk 0:02:47]} 14. Bf3 {[%clk 0:02:35]}  Qc7 {[%clk 0:02:04]} 15. Qb3 {[%clk 0:02:13]}  b5 {[%clk 0:01:55]} 16. Bg5 {[%clk 0:02:06]}  Rac8 {[%clk 0:01:27]} 17. Bxf6 {[%clk 0:02:04]}  Bxf6 {[%clk 0:01:27]} 18. Nd5 {[%clk 0:02:04]}  Qe5 {[%clk 0:01:03]} 19. c3 {[%clk 0:01:49]}  Rb8 {[%clk 0:00:16]} 20. Rfe1 {[%clk 0:01:44]}  Qg5 {[%clk 0:00:15]} 21. Qa3 {[%clk 0:01:30]}  Rfc8 {[%clk 0:00:07]} 22. Qxa6 {[%clk 0:01:24]}  Ne5 {[%clk 0:00:00]} 23. Be4 {[%clk 0:01:24]} 1-0


[Site "https://www.chess.com"]

[Event "Titled Tuesday Blitz July 18 Late 2023"]
[White "Omelja, Artem"]
[Black "Yolosz"]
[WhiteFideId "14119846"]
[WhiteElo "2631"]
[BlackElo "2404"]
[Result "1-0"]
[Round "8"]
[TimeControl "180+2"]
[Date "2023.07.18"]
[WhiteClock "0:01:13"]
[BlackClock "0:00:09"]
[Board "85"]

1. h3 {[%clk 0:03:00]}  d5 {[%clk 0:02:57]} 2. a3 {[%clk 0:02:58]}  Nf6 {[%clk 0:02:52]} 3. b4 {[%clk 0:02:54]}  Bf5 {[%clk 0:02:49]} 4. Bb2 {[%clk 0:02:54]}  Bg6 {[%clk 0:02:46]} 5. Nf3 {[%clk 0:02:49]}  c6 {[%clk 0:02:42]} 6. e3 {[%clk 0:02:45]}  e6 {[%clk 0:02:34]} 7. Be2 {[%clk 0:02:38]}  Nbd7 {[%clk 0:02:31]} 8. d4 {[%clk 0:02:27]}  a5 {[%clk 0:02:10]} 9. b5 {[%clk 0:02:22]}  c5 {[%clk 0:02:09]} 10. dxc5 {[%clk 0:02:11]}  Bxc5 {[%clk 0:02:06]} 11. Nbd2 {[%clk 0:02:07]}  O-O {[%clk 0:01:59]} 12. Nb3 {[%clk 0:02:02]}  Be7 {[%clk 0:01:54]} 13. O-O {[%clk 0:02:00]}  Ne4 {[%clk 0:01:48]} 14. c4 {[%clk 0:01:59]}  dxc4 {[%clk 0:01:44]} 15. Bxc4 {[%clk 0:02:00]}  Bf6 {[%clk 0:01:42]} 16. Bxf6 {[%clk 0:01:55]}  Ndxf6 {[%clk 0:01:42]} 17. Nbd4 {[%clk 0:01:55]}  Rc8 {[%clk 0:01:29]} 18. Be2 {[%clk 0:01:52]}  Nc3 {[%clk 0:01:15]} 19. Qe1 {[%clk 0:01:50]}  Qb6 {[%clk 0:01:09]} 20. Rc1 {[%clk 0:01:42]}  Nxe2+ {[%clk 0:01:01]} 21. Qxe2 {[%clk 0:01:42]}  Be4 {[%clk 0:00:57]} 22. Qb2 {[%clk 0:01:38]}  h6 {[%clk 0:00:53]} 23. Rfd1 {[%clk 0:01:36]}  Rxc1 {[%clk 0:00:44]} 24. Rxc1 {[%clk 0:01:35]}  Rd8 {[%clk 0:00:42]} 25. Nd2 {[%clk 0:01:33]}  Bg6 {[%clk 0:00:35]} 26. Nc4 {[%clk 0:01:30]}  Qa7 {[%clk 0:00:21]} 27. a4 {[%clk 0:01:20]}  Rc8 {[%clk 0:00:19]} 28. Ne5 {[%clk 0:01:18]}  Rxc1+ {[%clk 0:00:17]} 29. Qxc1 {[%clk 0:01:19]}  Be4 {[%clk 0:00:16]} 30. Qc8+ {[%clk 0:01:19]}  Kh7 {[%clk 0:00:17]} 31. Nxf7 {[%clk 0:01:18]}  Qb6 {[%clk 0:00:14]} 32. Qh8+ {[%clk 0:01:15]}  Kg6 {[%clk 0:00:14]} 33. Ne5+ {[%clk 0:01:16]}  Kh5 {[%clk 0:00:13]} 34. Qxg7 {[%clk 0:01:16]}  Qc5 {[%clk 0:00:11]} 35. g4+ {[%clk 0:01:13]}  Kh4 {[%clk 0:00:09]} 36. Qxh6+ {[%clk 0:01:13]} 1-0


[Site "https://www.chess.com"]

[Event "Titled Tuesday Blitz July 18 Late 2023"]
[White "Novikov, Evgenij"]
[Black "Romero Ruscalleda, Josep"]
[WhiteFideId "4125380"]
[BlackFideId "2231859"]
[WhiteElo "2478"]
[BlackElo "2379"]
[Result "0-1"]
[Round "8"]
[TimeControl "180+2"]
[Date "2023.07.18"]
[WhiteClock "0:00:37"]
[BlackClock "0:00:27"]
[Board "88"]

1. e4 {[%clk 0:03:00]}  g6 {[%clk 0:03:00]} 2. h4 {[%clk 0:03:00]}  d5 {[%clk 0:02:59]} 3. exd5 {[%clk 0:02:58]}  Qxd5 {[%clk 0:02:59]} 4. Nc3 {[%clk 0:02:56]}  Qa5 {[%clk 0:02:59]} 5. h5 {[%clk 0:02:55]}  Nf6 {[%clk 0:02:55]} 6. hxg6 {[%clk 0:02:54]}  fxg6 {[%clk 0:02:55]} 7. Bc4 {[%clk 0:02:42]}  Nc6 {[%clk 0:02:44]} 8. Nge2 {[%clk 0:02:32]}  Bg4 {[%clk 0:02:36]} 9. f3 {[%clk 0:02:30]}  Bf5 {[%clk 0:02:31]} 10. g4 {[%clk 0:02:27]}  Bd7 {[%clk 0:02:30]} 11. Nf4 {[%clk 0:02:12]}  Qe5+ {[%clk 0:02:20]} 12. Nce2 {[%clk 0:02:11]}  Nd4 {[%clk 0:02:04]} 13. Rh3 {[%clk 0:01:51]}  Bc6 {[%clk 0:01:54]} 14. Kf2 {[%clk 0:01:43]}  Nxe2 {[%clk 0:01:47]} 15. Nxg6 {[%clk 0:01:24]}  hxg6 {[%clk 0:01:20]} 16. Rxh8 {[%clk 0:01:22]}  Nxg4+ {[%clk 0:01:20]} 17. Kf1 {[%clk 0:00:59]}  Qxh8 {[%clk 0:01:16]} 18. Kxe2 {[%clk 0:00:51]}  Qe5+ {[%clk 0:00:50]} 19. Kf1 {[%clk 0:00:49]}  Qh2 {[%clk 0:00:41]} 20. fxg4 {[%clk 0:00:48]}  Qh1+ {[%clk 0:00:40]} 21. Ke2 {[%clk 0:00:48]}  Bf3+ {[%clk 0:00:41]} 22. Kd3 {[%clk 0:00:48]}  Bxd1 {[%clk 0:00:39]} 23. Kc3 {[%clk 0:00:47]}  O-O-O {[%clk 0:00:34]} 24. d4 {[%clk 0:00:46]}  Qf3+ {[%clk 0:00:32]} 25. Bd3 {[%clk 0:00:46]}  Bg7 {[%clk 0:00:30]} 26. Bg5 {[%clk 0:00:45]}  Bxd4+ {[%clk 0:00:29]} 27. Kb3 {[%clk 0:00:45]}  Qd5+ {[%clk 0:00:29]} 28. Bc4 {[%clk 0:00:43]}  Bxc2+ {[%clk 0:00:28]} 29. Kxc2 {[%clk 0:00:41]}  Qxc4+ {[%clk 0:00:28]} 30. Kd2 {[%clk 0:00:39]}  Bxb2+ {[%clk 0:00:27]} 31. Ke3 {[%clk 0:00:39]}  Bxa1 {[%clk 0:00:27]} 32. Bxe7 {[%clk 0:00:37]}  Rd3+ {[%clk 0:00:26]} 33. Ke2 {[%clk 0:00:37]}  Qc2+ {[%clk 0:00:27]} 34. Ke1 {[%clk 0:00:37]}  Rd1# {[%clk 0:00:27]} 0-1


[Site "https://www.chess.com"]

[Event "Titled Tuesday Blitz July 18 Late 2023"]
[White "Salazar Farias, Luis German"]
[Black "Gerbelli Neto, Eduardo"]
[WhiteFideId "3902170"]
[BlackFideId "2103281"]
[WhiteElo "2475"]
[BlackElo "2379"]
[Result "1-0"]
[Round "8"]
[TimeControl "180+2"]
[Date "2023.07.18"]
[WhiteClock "0:00:07"]
[BlackClock "0:00:03"]
[Board "89"]

1. d4 {[%clk 0:02:56]}  d5 {[%clk 0:02:59]} 2. c4 {[%clk 0:02:56]}  c6 {[%clk 0:03:00]} 3. Nc3 {[%clk 0:02:57]}  Nf6 {[%clk 0:02:57]} 4. e3 {[%clk 0:02:57]}  e6 {[%clk 0:02:57]} 5. Nf3 {[%clk 0:02:56]}  Nbd7 {[%clk 0:02:57]} 6. Bd3 {[%clk 0:02:56]}  dxc4 {[%clk 0:02:58]} 7. Bxc4 {[%clk 0:02:57]}  b5 {[%clk 0:02:58]} 8. Bd3 {[%clk 0:02:57]}  a6 {[%clk 0:02:59]} 9. e4 {[%clk 0:02:54]}  c5 {[%clk 0:03:00]} 10. e5 {[%clk 0:02:53]}  cxd4 {[%clk 0:02:49]} 11. Nxb5 {[%clk 0:02:54]}  axb5 {[%clk 0:02:50]} 12. exf6 {[%clk 0:02:54]}  gxf6 {[%clk 0:02:50]} 13. O-O {[%clk 0:02:53]}  Qb6 {[%clk 0:02:47]} 14. Bf4 {[%clk 0:02:50]}  Bd6 {[%clk 0:02:43]} 15. Bxd6 {[%clk 0:02:43]}  Qxd6 {[%clk 0:02:44]} 16. Bxb5 {[%clk 0:02:40]}  e5 {[%clk 0:02:41]} 17. Re1 {[%clk 0:02:36]}  O-O {[%clk 0:02:40]} 18. Nh4 {[%clk 0:02:29]}  Nc5 {[%clk 0:02:40]} 19. b4 {[%clk 0:02:15]}  Ne6 {[%clk 0:02:10]} 20. Nf5 {[%clk 0:02:01]}  Qxb4 {[%clk 0:02:10]} 21. Bd3 {[%clk 0:01:57]}  Kh8 {[%clk 0:01:38]} 22. Qh5 {[%clk 0:00:55]}  Ng5 {[%clk 0:01:05]} 23. Rab1 {[%clk 0:00:37]}  Qd2 {[%clk 0:00:57]} 24. Qh6 {[%clk 0:00:31]}  Nf3+ {[%clk 0:00:39]} 25. gxf3 {[%clk 0:00:31]}  Qxh6 {[%clk 0:00:39]} 26. Nxh6 {[%clk 0:00:32]}  Kg7 {[%clk 0:00:40]} 27. Nf5+ {[%clk 0:00:30]}  Kg8 {[%clk 0:00:40]} 28. Ne7+ {[%clk 0:00:25]}  Kg7 {[%clk 0:00:40]} 29. Nxc8 {[%clk 0:00:25]}  Rfxc8 {[%clk 0:00:41]} 30. Rb2 {[%clk 0:00:22]}  Rc3 {[%clk 0:00:41]} 31. Be4 {[%clk 0:00:22]}  Raa3 {[%clk 0:00:39]} 32. Reb1 {[%clk 0:00:20]}  Kh6 {[%clk 0:00:37]} 33. Kf1 {[%clk 0:00:18]}  Kg5 {[%clk 0:00:37]} 34. Bxh7 {[%clk 0:00:13]}  f5 {[%clk 0:00:36]} 35. h4+ {[%clk 0:00:08]}  Kf4 {[%clk 0:00:36]} 36. Rb3 {[%clk 0:00:07]}  Rxa2 {[%clk 0:00:31]} 37. Kg2 {[%clk 0:00:06]}  Rcc2 {[%clk 0:00:28]} 38. Rf1 {[%clk 0:00:05]}  e4 {[%clk 0:00:27]} 39. fxe4 {[%clk 0:00:05]}  fxe4 {[%clk 0:00:28]} 40. Rg3 {[%clk 0:00:03]}  f5 {[%clk 0:00:25]} 41. h5 {[%clk 0:00:04]}  e3 {[%clk 0:00:25]} 42. Rf3+ {[%clk 0:00:04]}  Ke5 {[%clk 0:00:20]} 43. Rxf5+ {[%clk 0:00:04]}  Ke6 {[%clk 0:00:20]} 44. Rf3 {[%clk 0:00:04]}  e2 {[%clk 0:00:19]} 45. Re1 {[%clk 0:00:02]}  Rd2 {[%clk 0:00:20]} 46. Bd3 {[%clk 0:00:02]}  Kd5 {[%clk 0:00:12]} 47. h6 {[%clk 0:00:02]}  Ra3 {[%clk 0:00:11]} 48. Rxe2 {[%clk 0:00:02]}  Rdxd3 {[%clk 0:00:11]} 49. Rxd3 {[%clk 0:00:02]}  Rxd3 {[%clk 0:00:12]} 50. h7 {[%clk 0:00:02]}  Re3 {[%clk 0:00:09]} 51. h8=Q {[%clk 0:00:02]}  Rxe2 {[%clk 0:00:09]} 52. Qh5+ {[%clk 0:00:03]}  Re5 {[%clk 0:00:09]} 53. Qf3+ {[%clk 0:00:03]}  Re4 {[%clk 0:00:10]} 54. Qf5+ {[%clk 0:00:04]}  Re5 {[%clk 0:00:10]} 55. Qd7+ {[%clk 0:00:04]}  Ke4 {[%clk 0:00:10]} 56. Qa4 {[%clk 0:00:05]}  Rc5 {[%clk 0:00:09]} 57. Qd1 {[%clk 0:00:05]}  d3 {[%clk 0:00:08]} 58. Qd2 {[%clk 0:00:05]}  Rd5 {[%clk 0:00:06]} 59. Qe3+ {[%clk 0:00:05]}  Kf5 {[%clk 0:00:06]} 60. f3 {[%clk 0:00:05]}  d2 {[%clk 0:00:06]} 61. Qe4+ {[%clk 0:00:06]}  Kf6 {[%clk 0:00:03]} 62. Qxd5 {[%clk 0:00:07]} 1-0


[Site "https://www.chess.com"]